bitfinex/quotes_SOLUSD_20240902
["timestamp","ask_amount","ask_price","bid_price","bid_amount"]
[1725262765180,49.63915991,127.91,127.84,19.5542]
[1725262765181,50.88499514,127.9,127.84,27.3764]
[1725262765493,58.70359514,127.9,127.84,27.3764]
[1725262765669,58.70359514,127.9,127.85,7.8215]
[1725262766070,20.0,127.9,127.84,19.5542]
[1725262766297,20.0,127.91,127.84,19.5542]
[1725262766796,20.0,127.91,127.86,7.821]
[1725262766797,27.818,127.91,127.86,7.821]
[1725262767301,20.0,127.91,127.84,19.5542]
[1725262767477,20.0,127.91,127.87,27.3706]
[1725262768286,20.0,127.91,127.87,19.5502]
[1725262768997,20.0,127.92,127.87,19.5502]
[1725262769570,30.88499514,127.96,127.89,19.5469]
[1725262769796,45.6827572,127.97,127.89,35.4449]
[1725262769997,53.4975572,127.97,127.92,7.8173]
[1725262770182,53.4975572,127.97,127.91,7.8179]
[1725262770892,20.0,127.96,127.91,7.8179]
[1725262771481,20.0,127.96,127.93,7.8166]
[1725262771697,38.69889514,127.98,127.94,7.8159]
[1725262771698,30.88499514,127.98,127.94,7.8159]
[1725262772088,7.8132,127.99,127.94,7.8159]
[1725262772899,20.0,127.98,127.94,7.8159]
[1725262773288,20.0,127.98,127.95,7.8153]
[1725262773489,20.0,127.99,127.95,7.8153]
[1725262773892,7.8128,128.0,127.95,7.8153]
[1725262774706,30.88499514,128.02,127.97,7.8138]
[1725262774903,0.12549,128.01,127.96,27.3511]
[1725262775382,30.88499514,128.02,127.96,27.3511]
[1725262775576,38.69619514,128.02,127.97,7.8143]
[1725262775781,20.0,128.01,127.97,7.8143]
[1725262776392,30.88499514,128.0,127.96,19.5362]
[1725262776599,20.0,127.99,127.96,19.5362]
[1725262776977,20.0,127.99,127.93,19.5417]
[1725262777179,30.88499514,127.98,127.93,19.5417]
[1725262777492,41.82105991,127.97,127.9,19.5461]
[1725262777803,30.88499514,127.98,127.88,6.3111]
[1725262777804,30.88499514,127.94,127.88,6.3111]
[1725262777995,7.8168,127.93,127.88,14.1306]
[1725262778207,30.88499514,127.94,127.88,6.3111]
[1725262778685,30.88499514,127.94,127.88,14.1304]
[1725262778686,7.8169,127.93,127.88,14.1304]
[1725262780395,7.8161,127.94,127.89,7.819]
[1725262780597,20.0,127.93,127.89,7.819]
[1725262781909,20.0,127.93,127.88,6.3111]
[1725262781910,20.0,127.93,127.9,7.8184]
[1725262782200,20.0,127.94,127.9,7.8184]
[1725262782722,30.88499514,128.0,127.91,1.27224826]
[1725262782896,30.88499514,128.0,127.89,1.56311224]
[1725262783210,30.88499514,128.0,127.89,46.56311224]
[1725262783788,7.8131,127.99,127.94,7.816]
[1725262784319,38.69749514,128.0,127.95,7.8153]
[1725262784494,7.8125,128.0,127.95,7.8153]
[1725262784808,30.88499514,128.02,127.96,19.5372]
[1725262785218,45.6827572,128.03,127.96,19.5372]
[1725262785800,7.8113,128.02,127.98,7.8136]
[1725262786109,20.0,128.02,127.98,7.8136]
[1725262787714,72.70605505,128.0,127.93,35.6694]
[1725262787890,30.88499514,127.98,127.93,35.6694]
[1725262788414,20.0,127.97,127.93,35.6694]
[1725262789107,20.0,127.99,127.93,35.6694]
[1725262789495,20.0,128.01,127.97,7.8142]
[1725262789889,20.0,128.01,127.96,27.352]
[1725262790617,20.0,128.01,127.97,7.8142]
[1725262791337,20.0,128.01,127.98,27.3469]
[1725262792304,20.0,128.01,127.98,19.5333]
[1725262792516,27.8119,128.01,127.96,7.8148]
[1725262792695,20.0,128.01,127.97,7.8143]
[1725262793523,20.0,128.01,127.98,7.8137]
[1725262794013,20.0,128.01,127.97,7.8142]
[1725262794308,20.0,128.01,127.93,16.128]
[1725262794309,30.88499514,128.0,127.93,16.128]
[1725262794491,20.0,127.99,127.95,7.815]
[1725262794891,20.0,127.99,127.94,27.3555]
[1725262795105,20.0,127.99,127.95,7.8155]
[1725262796620,20.0,127.99,127.98,7.8137]
[1725262796915,20.0,127.99,127.97,7.8142]
[1725262797120,7.8133,127.99,127.94,7.8159]
[1725262797419,7.8133,127.99,127.93,35.6695]
[1725262797420,20.0,127.98,127.93,35.6695]
[1725262797719,7.8143,127.97,127.93,16.128]
[1725262797895,20.0,127.96,127.93,16.128]
[1725262798494,20.0,127.97,127.95,7.8155]
[1725262798716,7.8125,128.0,127.95,7.8155]
[1725262798914,20.0,127.99,127.97,19.5357]
[1725262799117,20.0,127.99,127.96,7.8148]
[1725262799519,27.8125,128.0,127.95,7.8154]
[1725262800201,7.8134,127.99,127.94,19.5396]
[1725262800395,7.8134,127.99,127.94,27.3552]
[1725262800396,20.0,127.98,127.94,27.3552]
[1725262800802,20.0,127.98,127.93,16.128]
[1725262800994,30.88499514,127.95,127.91,6.4376]
[1725262801200,20.0,127.94,127.89,15.0695]
[1725262801800,27.8149,127.96,127.9,7.8185]
[1725262802598,7.8157,127.95,127.9,7.8185]
[1725262802806,20.0,127.94,127.9,7.8185]
[1725262803316,20.0,127.94,127.89,34.6175]
[1725262803504,30.88499514,127.94,127.89,34.6175]
[1725262803703,20.0,127.93,127.89,34.6175]
[1725262804018,20.0,127.93,127.8,70.00729514]
[1725262804019,7.818,127.91,127.86,27.3735]
[1725262804215,27.8187,127.9,127.85,22.5188]
[1725262804416,0.12549,127.89,127.85,22.5188]
[1725262804607,50.88499514,127.9,127.85,22.5188]
[1725262805121,58.70359514,127.9,127.85,30.3399]
[1725262805333,50.88499514,127.9,127.87,7.82]
[1725262805631,50.88499514,127.9,127.86,19.5517]
[1725262805796,20.0,127.9,127.86,19.5517]
[1725262805998,7.8192,127.89,127.85,22.5188]
[1725262806199,20.0,127.88,127.85,22.5188]
[1725262806501,27.8185,127.91,127.85,30.3401]
[1725262806915,20.0,127.91,127.85,22.5188]
[1725262807104,30.88499514,127.94,127.89,7.8191]
[1725262807105,20.0,127.93,127.89,7.8191]
[1725262807309,20.0,127.93,127.88,7.8197]
[1725262807511,27.8168,127.93,127.88,7.8197]
[1725262808222,78.03115505,127.97,127.88,19.5481]
[1725262808522,30.88499514,127.97,127.92,7.8171]
[1725262808698,7.8149,127.96,127.91,27.3624]
[1725262808901,30.88499514,127.95,127.91,27.3624]
[1725262809601,20.0,127.94,127.91,27.3624]
[1725262811425,20.0,127.94,127.91,19.5445]
[1725262811637,20.0,127.96,127.91,19.5445]
[1725262811925,38.69979514,127.97,127.92,7.8173]
[1725262812800,30.88499514,127.97,127.91,19.5445]
[1725262813327,45.6827572,127.99,127.93,34.5501]
[1725262813328,34.74669243,127.99,127.93,34.5501]
[1725262813527,30.88499514,127.99,127.95,7.8154]
[1725262813715,41.82105991,127.99,127.93,34.5501]
[1725262813922,30.88499514,127.98,127.94,7.8161]
[1725262814310,30.88499514,127.98,127.93,19.541]
[1725262814832,30.88499514,128.0,127.93,19.541]
[1725262815128,0.12549,127.99,127.95,7.815]
[1725262815327,38.69749514,128.0,127.95,7.815]
[1725262815831,30.88499514,128.0,127.96,7.8148]
[1725262816137,38.69629514,128.02,127.97,7.8142]
[1725262817713,27.8119,128.01,127.96,7.8148]
[1725262817914,24.71261469,128.0,127.96,7.8148]
[1725262818214,20.0,127.99,127.95,27.353]
[1725262819034,20.0,127.99,127.96,7.8148]
[1725262821038,20.0,127.99,127.97,7.8143]
[1725262821908,20.0,127.99,127.98,7.8137]
[1725262822437,20.0,127.99,127.95,19.5376]
[1725262822638,20.0,128.01,127.95,19.5376]
[1725262822808,32.52511469,128.0,127.96,7.8147]
[1725262823009,24.71261469,127.98,127.92,25.8004]
[1725262823220,7.8145,127.97,127.92,33.6176]
[1725262823434,32.52641469,127.98,127.93,7.8167]
[1725262824521,24.71261469,127.98,127.95,7.815]
[1725262824719,24.71261469,127.98,127.94,27.3551]
[1725262825044,7.8161,127.95,127.92,6.257]
[1725262825218,24.71261469,127.96,127.92,6.257]
[1725262825419,24.71261469,127.98,127.94,19.5404]
[1725262825738,24.71261469,127.98,127.95,7.8154]
[1725262825929,20.0,127.97,127.95,7.8154]
[1725262826129,20.0,127.97,127.94,27.3564]
[1725262827515,24.71261469,127.96,127.9,15.0091]
[1725262827746,20.0,127.95,127.9,22.8272]
[1725262828209,27.8159,127.95,127.9,22.8272]
[1725262828813,20.0,127.95,127.91,7.8179]
[1725262829062,20.0,127.95,127.91,19.5441]
[1725262829337,20.0,127.97,127.93,7.8162]
[1725262829537,20.0,127.97,127.94,7.816]
[1725262829726,20.0,127.97,127.95,7.815]
[1725262829921,20.0,127.99,127.95,7.815]
[1725262830142,27.8131,127.99,127.94,7.816]
[1725262830445,20.0,127.99,127.95,7.8154]
[1725262832517,65.65905991,128.06,127.93,15.9004]
[1725262832713,7.8108,128.03,127.96,7.8143]
[1725262832916,24.71261469,128.02,127.97,27.349]
[1725262833931,20.0,128.01,127.97,27.349]
[1725262834638,20.0,128.01,127.98,7.8136]
[1725262834844,20.0,128.01,127.97,27.3489]
[1725262835221,20.0,128.01,127.98,7.8137]
[1725262835833,20.0,128.02,127.98,7.8137]
[1725262836220,20.0,128.02,127.99,7.813]
[1725262836431,20.0,128.03,128.01,7.8116]
[1725262836640,20.0,128.05,128.01,7.8116]
[1725262836942,32.52141469,128.06,128.01,7.8116]
[1725262837439,296.12105991,128.11,128.04,7.81]
[1725262837612,24.71261469,128.09,128.01,19.5287]
[1725262838039,7.8077,128.08,128.01,19.5287]
[1725262838241,7.8077,128.08,128.03,7.8105]
[1725262838736,32.51971469,128.09,128.04,7.8099]
[1725262839957,20.0,128.08,128.04,7.8099]
[1725262840125,27.8077,128.08,128.03,27.3362]
[1725262840944,20.0,128.08,128.04,7.8099]
[1725262841254,27.8076,128.08,128.03,27.3363]
[1725262841753,27.8076,128.08,128.04,7.8099]
[1725262841942,20.0,128.08,128.04,7.8099]
[1725262842923,27.8076,128.08,128.03,27.3362]
[1725262843447,20.0,128.08,128.05,7.8093]
[1725262845231,20.0,128.08,128.03,27.3357]
[1725262845629,20.0,128.08,128.04,7.8098]
[1725262846365,20.0,128.08,128.05,7.8093]
[1725262846835,20.0,128.09,128.05,7.8093]
[1725262848441,27.807,128.09,128.04,7.8099]
[1725262848653,52.51961469,128.09,128.04,7.8099]
[1725262849442,52.51961469,128.09,128.05,7.8093]
[1725262849650,44.71261469,128.09,128.05,7.8093]
[1725262849935,20.0,128.09,128.05,19.5229]
[1725262850134,20.0,128.1,128.05,27.3317]
[1725262850339,32.51961469,128.09,128.05,19.5229]
[1725262850536,27.8076,128.08,128.04,7.8099]
[1725262850740,7.8083,128.07,128.02,19.5274]
[1725262850943,20.0,128.06,128.02,19.5274]
[1725262851150,24.71261469,128.03,127.99,16.2162]
[1725262851430,20.12549,128.02,127.99,16.2162]
[1725262851633,20.0,128.02,127.97,7.8142]
[1725262852231,27.8113,128.02,127.97,7.8142]
[1725262852564,20.0,128.02,127.99,7.813]
[1725262852859,20.0,128.02,127.98,7.8137]
[1725262853866,20.0,128.02,127.99,7.813]
[1725262855062,20.0,128.02,127.98,19.5328]
[1725262855267,20.0,128.04,128.01,7.8118]
[1725262856461,20.0,128.04,128.0,19.5298]
[1725262856659,24.71261469,128.07,128.0,19.5298]
[1725262856660,20.0,128.06,128.0,19.5298]
[1725262857260,27.8093,128.06,128.01,7.8118]
[1725262857870,7.8101,128.04,128.0,27.3422]
[1725262858075,20.0,128.03,128.0,27.3422]
[1725262858447,0.12549,128.02,127.97,19.5351]
[1725262858764,52.52341469,128.03,127.98,7.8136]
[1725262858963,7.8113,128.02,127.97,27.3492]
[1725262859274,20.0,128.01,127.97,27.3492]
[1725262859773,20.0,128.01,127.95,16.305]
[1725262859774,24.71261469,127.99,127.95,16.305]
[1725262859968,27.8142,127.98,127.94,25.6524]
[1725262860149,20.0,127.98,127.94,6.1121]
[1725262860467,20.0,127.98,127.95,7.8155]
[1725262860966,20.0,127.99,127.95,7.8155]
[1725262861167,20.0,127.99,127.96,7.8149]
[1725262861468,32.52461469,128.01,127.96,7.8149]
[1725262861469,20.0,128.0,127.96,7.8149]
[1725262861851,20.0,128.0,127.96,19.5362]
[1725262862052,20.0,128.01,127.96,19.5362]
[1725262862255,0.12549,128.0,127.96,19.5362]
[1725262862777,7.93839,128.0,127.96,19.5362]
[1725262863075,20.0,127.99,127.96,19.5362]
[1725262864571,0.12549,127.98,127.94,13.9281]
[1725262865081,20.0,127.99,127.95,19.538]
[1725262865251,20.0,128.0,127.96,7.8144]
[1725262865770,24.71261469,128.03,127.94,6.1121]
[1725262865771,24.71261469,128.03,127.97,19.5346]
[1725262866480,7.81,128.04,127.97,19.5346]
[1725262866855,24.71261469,128.05,127.99,7.8129]
[1725262867050,74.3447746,128.03,127.98,7.8136]
[1725262867246,49.63315991,128.01,127.97,19.5346]
[1725262867446,20.0,128.0,127.94,25.6519]
[1725262868380,27.8125,128.0,127.95,7.8155]
[1725262868549,27.8125,128.0,127.94,33.4679]
[1725262868550,7.8138,127.98,127.94,33.4679]
[1725262868750,27.8125,128.0,127.95,7.8155]
[1725262869251,27.8125,128.0,127.96,7.8148]
[1725262869579,20.0,128.0,127.96,19.5361]
[1725262869752,24.71261469,128.03,127.96,19.5361]
[1725262870076,20.0,128.02,127.99,7.8129]
[1725262870281,20.0,128.02,127.94,6.1121]
[1725262870473,20.0,128.04,128.01,7.8118]
[1725262870657,20.0,128.04,128.0,19.5301]
[1725262870658,27.8105,128.04,128.0,19.5301]
[1725262870853,7.8114,128.02,127.97,19.5354]
[1725262871174,27.812,128.01,127.97,27.3495]
[1725262871774,7.8132,127.99,127.94,25.6519]
[1725262871964,20.0,127.98,127.94,25.6519]
[1725262872860,20.0,127.98,127.94,33.4675]
[1725262873060,20.0,127.98,127.95,7.8154]
[1725262873284,24.71261469,128.01,127.94,25.6519]
[1725262873285,20.0,127.99,127.94,25.6519]
[1725262873580,32.52461469,128.01,127.94,25.6519]
[1725262873581,20.0,128.0,127.97,7.8142]
[1725262873770,20.0,128.01,127.97,7.8142]
[1725262874251,20.0,128.01,127.96,19.5362]
[1725262874451,20.0,128.04,127.96,19.5362]
[1725262874682,27.8105,128.04,127.99,7.8128]
[1725262877290,20.0,128.04,128.0,7.8123]
[1725262877451,7.8091,128.06,128.0,19.5304]
[1725262877657,7.8091,128.06,128.02,7.8112]
[1725262878076,32.52081469,128.07,128.02,7.8112]
[1725262878553,24.71261469,128.07,128.03,7.8104]
[1725262879982,20.0,128.06,128.03,7.8104]
[1725262880181,20.0,128.06,128.02,19.5269]
[1725262880389,20.0,128.08,128.02,19.5269]
[1725262880551,11.66809729,128.1,128.04,19.5242]
[1725262881067,7.8064,128.1,128.04,19.5242]
[1725262881402,24.71261469,128.11,128.04,19.5242]
[1725262881403,32.51861469,128.11,128.06,7.8087]
[1725262881764,20.0,128.1,128.06,7.8087]
[1725262881955,24.71261469,128.11,128.07,7.808]
[1725262882786,49.62625991,128.12,128.07,7.808]
[1725262883285,24.71261469,128.13,128.09,7.8069]
[1725262884078,7.804,128.14,128.09,7.8069]
[1725262884288,24.71261469,128.15,128.1,7.8063]
[1725262884494,24.71261469,128.15,128.06,6.6602]
[1725262884701,41.82105991,128.2,128.09,15.0356]
[1725262884986,24.71261469,128.17,128.11,7.8057]
[1725262885192,24.71261469,128.15,128.11,7.8057]
[1725262885361,24.71261469,128.17,128.11,7.8057]
[1725262885985,7.8035,128.15,128.11,19.5139]
[1725262886484,20.0,128.14,128.11,27.3195]
[1725262886687,27.8028,128.16,128.11,27.3195]
[1725262886867,27.8028,128.16,128.12,7.8051]
[1725262886868,20.0,128.16,128.12,7.8051]
[1725262888687,20.0,128.16,128.12,14.3041]
[1725262889293,20.0,128.16,128.13,7.8043]
[1725262889569,20.0,128.18,128.13,7.8043]
[1725262889772,27.802,128.18,128.13,7.8043]
[1725262889968,24.71261469,128.17,128.12,14.304]
[1725262890181,20.0,128.16,128.12,14.304]
[1725262891425,24.71261469,128.13,128.09,21.1105]
[1725262891767,20.0,128.12,128.09,21.1105]
[1725262892996,20.0,128.14,128.09,21.1105]
[1725262893196,0.12549,128.13,128.09,21.1105]
[1725262894409,7.8046,128.13,128.09,21.1105]
[1725262894613,20.0,128.12,128.09,21.1105]
[1725262894916,27.8052,128.12,128.08,7.8074]
[1725262895409,52.51781469,128.12,128.07,19.5195]
[1725262895712,7.8057,128.11,128.07,19.5195]
[1725262895900,20.0,128.1,128.07,19.5195]
[1725262899505,27.8064,128.1,128.06,23.2277]
[1725262902017,20.0,128.1,128.06,23.2277]
[1725262903397,20.0,128.1,128.07,7.8081]
[1725262904139,7.8076,128.08,128.06,15.4195]
[1725262904437,27.8082,128.07,128.06,15.4195]
[1725262904607,27.8082,128.07,128.03,7.8106]
[1725262905122,7.809,128.06,128.02,22.9468]
[1725262905315,20.0,128.05,128.02,22.9468]
[1725262905513,7.8103,128.04,128.02,16.5875]
[1725262905710,27.8095,128.05,128.02,16.5875]
[1725262908924,20.0,128.05,128.02,16.5875]
[1725262909426,20.0,128.09,128.05,7.8093]
[1725262909927,20.0,128.09,128.06,7.8087]
[1725262910136,32.51851469,128.11,128.04,19.5251]
[1725262910137,20.0,128.1,128.04,19.5251]
[1725262910427,24.71261469,128.11,128.07,7.8081]
[1725262910801,30.0,128.08,128.06,7.8087]
[1725262911731,30.0,128.07,128.06,7.8087]
[1725262920829,30.0,128.07,128.06,14.3712]
[1725262921132,32.51711469,128.13,128.08,7.8073]
[1725262921326,20.0,128.12,128.08,7.8073]
[1725262921631,20.0,128.12,128.09,7.8066]
[1725262922131,20.0,128.13,128.09,7.8066]
[1725262922323,30.0,128.1,128.09,7.8066]
[1725262922503,20.0,128.13,128.09,7.8066]
[1725262922929,20.0,128.13,128.1,7.8063]
[1725262923134,32.51601469,128.15,128.1,7.8063]
[1725262923135,20.0,128.14,128.1,7.8063]
[1725262924515,20.0,128.14,128.11,7.8056]
[1725262924937,24.71261469,128.17,128.13,7.8044]
[1725262925310,32.51511469,128.17,128.12,7.8049]
[1725262925638,265.96329729,128.18,128.13,7.8043]
[1725262925816,32.51351469,128.19,128.14,7.8034]
[1725262927136,20.0,128.18,128.14,7.8034]
[1725262928246,20.0,128.18,128.15,7.8028]
[1725262928421,32.51231469,128.21,128.16,7.8022]
[1725262929336,7.7992,128.22,128.17,7.802]
[1725262930043,20.0,128.21,128.18,7.8013]
[1725262930228,20.0,128.22,128.18,7.8013]
[1725262930426,41.82105991,128.18,128.11,19.5133]
[1725262930751,24.71261469,128.15,128.09,7.8065]
[1725262931040,24.71261469,128.15,128.08,41.8195]
[1725262931041,7.8052,128.12,128.08,41.8195]
[1725262931350,7.8047,128.13,128.08,41.8195]
[1725262931641,20.0,128.12,128.08,41.8195]
[1725262931821,27.804,128.14,128.08,41.8195]
[1725262932145,27.804,128.14,128.09,7.807]
[1725262934247,20.0,128.14,128.08,41.8195]
[1725262934447,20.0,128.16,128.09,45.0]
[1725262935444,27.8027,128.16,128.11,7.8056]
[1725262935842,32.51641469,128.15,128.09,7.8065]
[1725262936139,7.8052,128.12,128.08,41.8195]
[1725262936327,20.0,128.11,128.08,41.8195]
[1725262936535,20.0,128.11,128.08,22.3011]
[1725262938832,20.0,128.11,128.08,30.1085]
[1725262939149,20.0,128.12,128.08,30.1085]
[1725262939834,20.0,128.12,128.09,19.5167]
[1725262940049,24.71261469,128.16,128.09,19.5167]
[1725262940338,20.0,128.15,128.09,19.5167]
[1725262940532,27.8039,128.15,128.1,7.8063]
[1725262941477,7.804,128.14,128.09,27.3236]
[1725262941745,20.0,128.13,128.09,27.3236]
[1725262950343,20.0,128.13,128.1,7.8061]
[1725262950546,20.0,128.14,128.11,7.8057]
[1725262950743,20.0,128.14,128.1,7.8061]
[1725262953441,20.0,128.14,128.11,7.8057]
[1725262954540,20.0,128.14,128.1,7.8062]
[1725262954956,20.0,128.14,128.11,7.8057]
[1725262955639,20.0,128.14,128.1,7.8062]
[1725262957247,20.0,128.14,128.09,19.5167]
[1725262957543,20.0,128.14,128.11,7.8056]
[1725262959362,44.71261469,128.14,128.08,22.3011]
[1725262959669,44.71261469,128.14,128.04,6.0286]
[1725262959670,7.8076,128.08,128.04,6.0286]
[1725262959958,20.0,128.07,128.03,7.8106]
[1725262960337,20.0,128.07,128.03,27.3368]
[1725262961475,20.0,128.07,128.04,7.81]
[1725262962052,7.8069,128.1,128.04,7.81]
[1725262962053,20.0,128.09,128.04,7.81]
[1725262962251,44.71261469,128.09,128.04,7.81]
[1725262963447,52.51981469,128.09,128.04,7.81]
[1725262963766,7.93319,128.08,128.04,7.81]
[1725262963953,20.0,128.07,128.04,7.81]
[1725262964545,20.12549,128.08,128.04,7.81]
[1725262965850,20.0,128.08,128.04,7.81]
[1725262966059,20.0,128.08,128.05,7.8092]
[1725262969167,20.0,128.08,128.03,27.3363]
[1725262969168,27.8077,128.08,128.03,27.3363]
[1725262969472,0.12549,128.07,128.04,7.8099]
[1725262969674,0.12549,128.07,127.91,9.35358341]
[1725262969675,5.0,128.06,127.91,9.35358341]
[1725262969850,25.0,128.06,127.97,24.71261469]
[1725262970053,25.0,128.06,127.98,20.0]
[1725262970245,5.0,128.04,127.98,20.0]
[1725262970564,20.0,128.05,127.98,20.0]
[1725262970948,25.0,128.06,127.98,20.0]
[1725262971271,25.0,128.06,128.03,27.3367]
[1725262971575,25.0,128.06,128.04,7.81]
[1725262971872,5.0,128.06,128.04,7.81]
[1725262972467,5.0,128.06,128.05,7.8094]
[1725262974789,25.0,128.08,128.06,7.8087]
[1725262975069,25.0,128.08,128.05,19.5229]
[1725262975368,25.0,128.08,128.06,7.8088]
[1725262975369,20.0,128.07,128.06,7.8088]
[1725262979168,5.0,128.1,128.09,7.807]
[1725262980271,5.0,128.12,128.09,7.807]
[1725262981558,5.0,128.12,128.1,7.8063]
[1725262988177,5.0,128.12,128.11,7.8057]
[1725262990977,5.0,128.14,128.12,7.8051]
[1725262992481,5.0,128.14,128.13,7.8045]
[1725262993199,5.0,128.1,128.08,19.5189]
[1725262993356,5.0,128.08,128.05,7.8093]
[1725262993556,5.0,128.08,128.06,7.8082]
[1725262993780,5.0,128.08,128.07,7.8082]
[1725262994767,5.0,128.08,128.06,7.8087]
[1725262996866,5.0,128.08,128.05,19.5228]
[1725262996867,5.0,128.08,128.07,7.8082]
[1725262997063,5.0,128.1,128.08,7.8071]
[1725262997273,5.0,128.1,128.07,19.5194]
[1725262998395,5.0,128.1,128.09,7.807]
[1725263000571,5.0,128.1,128.07,19.5194]
[1725263000780,5.0,128.1,128.08,7.8071]
[1725263001387,5.0,128.1,128.09,7.807]
[1725263002486,20.0,128.11,128.09,7.807]
[1725263002690,5.0,128.12,128.11,7.8057]
[1725263004585,25.0,128.14,128.11,7.8057]
[1725263004894,25.0,128.14,128.12,7.805]
[1725263005997,5.0,128.12,128.11,7.8056]
[1725263007298,5.0,128.12,128.1,7.8062]
[1725263008393,5.0,128.12,128.11,7.8057]
[1725263031617,5.0,128.12,128.09,27.3229]
[1725263031828,5.0,128.08,128.06,19.5211]
[1725263032697,5.0,128.08,128.07,7.8082]
[1725263033398,5.0,128.08,128.06,19.5211]
[1725263033399,5.0,128.08,128.06,27.3298]
[1725263033690,5.0,128.06,128.05,7.8093]
[1725263034319,5.0,128.06,128.04,7.8099]
[1725263034526,5.0,128.04,128.03,19.5259]
[1725263034729,5.0,128.04,128.01,24.3126]
[1725263035014,5.0,128.04,128.02,7.8107]
[1725263035806,5.0,128.06,128.03,19.5266]
[1725263036423,5.0,128.04,128.03,27.3372]
[1725263041121,5.0,128.06,128.05,7.8094]
[1725263045526,5.0,128.04,128.03,27.3371]
[1725263050515,5.0,128.04,128.03,19.5266]
[1725263050841,5.0,128.04,128.03,27.3372]
[1725263052630,5.0,128.04,128.0,19.5305]
[1725263052832,5.0,128.01,128.0,19.5305]
[1725263053331,5.0,128.01,128.0,27.343]
[1725263055024,5.0,128.01,128.0,19.5305]
[1725263055737,5.0,128.01,128.0,27.343]
[1725263056119,5.0,128.03,128.0,19.5305]
[1725263057425,5.0,128.03,128.02,7.8112]
[1725263057637,5.0,128.03,128.01,7.8117]
[1725263059017,5.0,128.03,128.02,7.8112]
[1725263061218,5.0,128.01,128.0,27.3429]
[1725263063737,5.0,128.03,128.01,7.8113]
[1725263063928,5.0,128.03,128.02,7.8112]
[1725263065842,6.0642,128.1,128.04,27.3351]
[1725263065843,5.0,128.05,128.04,27.3351]
[1725263067122,5.0,128.07,128.06,7.8088]
[1725263067748,5.0,128.07,128.01,6.1327]
[1725263067749,5.0,128.0,127.95,26.29816269]
[1725263067923,5.0,128.02,128.0,7.812]
[1725263068549,5.0,128.04,128.01,7.8118]
[1725263068750,5.0,128.04,128.02,7.8109]
[1725263069642,5.0,128.04,128.03,7.8106]
[1725263070020,20.0,128.06,128.03,7.8106]
[1725263070021,5.0,128.06,128.03,7.8106]
[1725263070837,5.0,128.06,128.02,19.5272]
[1725263070838,5.0,128.06,128.04,7.81]
[1725263076450,20.0,128.07,128.02,19.5272]
[1725263076451,5.0,128.03,128.02,19.5272]
[1725263077260,5.0,128.03,128.02,27.3384]
[1725263077637,5.0,128.03,128.02,19.5272]
[1725263077939,5.0,128.03,127.95,19.5373]
[1725263077940,5.0,127.97,127.95,19.5373]
[1725263078143,5.0,127.94,127.92,19.5429]
[1725263080131,5.0,127.94,127.92,27.3601]
[1725263080360,5.0,127.96,127.92,19.5429]
[1725263080531,5.0,127.96,127.93,45.0]
[1725263081338,5.0,127.96,127.94,7.8161]